Body,Body Name,Date,TransNo,Amount � (Excl VAT),Supplier name,Description,Expense Area,Expense Type,Expense Code,
http://opendatacommunities.org/id/london-borough-council/sutton,London Borough of Sutton,07/08/2019,1280234,29.96 , WWW.IKEA.COM,TOYS & EQUIPMENT,Peoples Services Directorate,Education Equipment,F009,
http://opendatacommunities.org/id/london-borough-council/sutton,London Borough of Sutton,07/08/2019,1280234,13.14 , WWW.BRAINWAVES.NET,TOYS & EQUIPMENT,Peoples Services Directorate,Education Equipment,F009,
http://opendatacommunities.org/id/london-borough-council/sutton,London Borough of Sutton,25/08/2019,1280234,34.48 , W M MORRISON STORE,GROCERIES,Peoples Services Directorate,Provisions - General,F150,
http://opendatacommunities.org/id/london-borough-council/sutton,London Borough of Sutton,22/08/2019,1280234,7.50 , SAINSBURYS SACAT 2006,GROCERIES,Peoples Services Directorate,Provisions - General,F150,
http://opendatacommunities.org/id/london-borough-council/sutton,London Borough of Sutton,18/08/2019,1280234,48.54 , W M MORRISON STORE,GROCERIES,Peoples Services Directorate,Provisions - General,F150,
http://opendatacommunities.org/id/london-borough-council/sutton,London Borough of Sutton,13/08/2019,1280234,14.61 , ASDA SUPERSTORE,GROCERIES,Peoples Services Directorate,Provisions - General,F150,
http://opendatacommunities.org/id/london-borough-council/sutton,London Borough of Sutton,12/08/2019,1280234,106.71 , W M MORRISONS.COM,GROCERIES,Peoples Services Directorate,Provisions - General,F150,
http://opendatacommunities.org/id/london-borough-council/sutton,London Borough of Sutton,08/08/2019,1280234,6.81 , WM MORRISONS STORE,GROCERIES,Peoples Services Directorate,Provisions - General,F150,
http://opendatacommunities.org/id/london-borough-council/sutton,London Borough of Sutton,30/07/2019,1280234,92.30 , W M MORRISONS.COM,GROCERY SHOP,Peoples Services Directorate,Provisions - General,F150,
http://opendatacommunities.org/id/london-borough-council/sutton,London Borough of Sutton,25/07/2019,1280234,70.00 , PARK CYCLE,70.00 - H301 0044 9999 - PARK CYCLE,Peoples Services Directorate,Client Care/Assistance,H301,
http://opendatacommunities.org/id/london-borough-council/sutton,London Borough of Sutton,31/07/2019,1280234,40.00 , OYSTER AUTO-TOP UP,OYSTER TOP UP DG CARD5564,Peoples Services Directorate,Staff Travelling Expenses,E130,
http://opendatacommunities.org/id/london-borough-council/sutton,London Borough of Sutton,31/07/2019,1280234,29.99 , ARGOS RETAIL GROUP,KETTLE FOR KITCHEN MSS,Peoples Services Directorate,Administrative Equipment,F001,
http://opendatacommunities.org/id/london-borough-council/sutton,London Borough of Sutton,19/08/2019,1280234,38.16 , WWW.INSTANTPRINT.C,"350GSM SILK, BUSINESS CARDS, 85 X 55 MM, DOUBLE SIDED X 5000 STUDENT CARDS",Peoples Services Directorate,Printing - General,F215,
http://opendatacommunities.org/id/london-borough-council/sutton,London Borough of Sutton,05/08/2019,1280234,142.67 , WWW.INSTANTPRINT.C,STUDENT HANDBOOK 19/20 X 5000,Peoples Services Directorate,Advertising/Publicity (non Staff),F240,
http://opendatacommunities.org/id/london-borough-council/sutton,London Borough of Sutton,30/07/2019,1280234,61.88 , MAILCHIMP    MONTHLY,MAILCHIMP SUBSCRIPTION JULY 2019,Peoples Services Directorate,Subscriptions - General,F450,
http://opendatacommunities.org/id/london-borough-council/sutton,London Borough of Sutton,02/08/2019,1280234,39.98 , NBNI  190805150518520,D A APPRENTICE TEXT BOOK,Peoples Services Directorate,Books,F006,
http://opendatacommunities.org/id/london-borough-council/sutton,London Borough of Sutton,04/08/2019,1280234,16.67 , OYSTER AUTO-TOP UP,TRAVEL,Peoples Services Directorate,Travelling and Subsistence Allowances,A530,
http://opendatacommunities.org/id/london-borough-council/sutton,London Borough of Sutton,26/08/2019,1280234,20.00 , OYSTER AUTO-TOP UP,20.00 AUTO TOP UP - A530 0301 9999,Peoples Services Directorate,Travelling and Subsistence Allowances,A530,
http://opendatacommunities.org/id/london-borough-council/sutton,London Borough of Sutton,24/08/2019,1280234,20.00 , OYSTER AUTO-TOP UP,20.00 - A530 0301 9999 - OYSTER TOP UP,Peoples Services Directorate,Travelling and Subsistence Allowances,A530,
http://opendatacommunities.org/id/london-borough-council/sutton,London Borough of Sutton,04/08/2019,1280234,20.00 , OYSTER AUTO-TOP UP,TRAVEL,Peoples Services Directorate,Travelling and Subsistence Allowances,A530,
http://opendatacommunities.org/id/london-borough-council/sutton,London Borough of Sutton,18/08/2019,1280234,20.00 , OYSTER AUTO-TOP UP,20.00 AUTO TOP UP- A530 0304 9999,Peoples Services Directorate,Travelling and Subsistence Allowances,A530,
http://opendatacommunities.org/id/london-borough-council/sutton,London Borough of Sutton,15/08/2019,1280234,20.00 , OYSTER AUTO-TOP UP,20.00 - A530 0304 9999 - OYSTER CARD FOR LCT.P,Peoples Services Directorate,Travelling and Subsistence Allowances,A530,
http://opendatacommunities.org/id/london-borough-council/sutton,London Borough of Sutton,14/08/2019,1280234,20.00 , OYSTER AUTO-TOP UP,20.00 AUTO TOP UP- A530 0304 9999,Peoples Services Directorate,Travelling and Subsistence Allowances,A530,
http://opendatacommunities.org/id/london-borough-council/sutton,London Borough of Sutton,14/08/2019,1280234,20.00 , OYSTER AUTO-TOP UP,20.00 - A530 0304 9999 - OYSTER,Peoples Services Directorate,Travelling and Subsistence Allowances,A530,
http://opendatacommunities.org/id/london-borough-council/sutton,London Borough of Sutton,11/08/2019,1280234,20.00 , OYSTER AUTO-TOP UP,20.00 - A530 0304 9999,Peoples Services Directorate,Travelling and Subsistence Allowances,A530,
http://opendatacommunities.org/id/london-borough-council/sutton,London Borough of Sutton,11/08/2019,1280234,20.00 , OYSTER AUTO-TOP UP,20.00 - A530 0304 9999 - LCT,Peoples Services Directorate,Travelling and Subsistence Allowances,A530,
http://opendatacommunities.org/id/london-borough-council/sutton,London Borough of Sutton,15/08/2019,1280234,80.25 , GEN REGISTER OFFICE,PERSONAL REQUISITES,Peoples Services Directorate,Personal Requisites,F106,
http://opendatacommunities.org/id/london-borough-council/sutton,London Borough of Sutton,15/08/2019,1280234,(73.75), GEN REGISTER OFFICE,PERSONAL REQUISITES,Peoples Services Directorate,Personal Requisites,F106,
http://opendatacommunities.org/id/london-borough-council/sutton,London Borough of Sutton,13/08/2019,1280234,75.00 , 2MAA011186196 TD E-PMT,PERSONAL REQUISITES,Peoples Services Directorate,Personal Requisites,F106,
http://opendatacommunities.org/id/london-borough-council/sutton,London Borough of Sutton,02/08/2019,1280234,18.00 , WWW.ARGOS.CO.UK,ARGOS ORDER,Peoples Services Directorate,Personal Requisites,F106,
http://opendatacommunities.org/id/london-borough-council/sutton,London Borough of Sutton,22/08/2019,1280234,164.99 , SCREWFIX DIRECT,164.99 - F106 0304 9999 - SCREWFIX.P,Peoples Services Directorate,Personal Requisites,F106,
http://opendatacommunities.org/id/london-borough-council/sutton,London Borough of Sutton,17/08/2019,1280234,20.00 , OYSTER AUTO-TOP UP,77.95 - F106 0304 9999 - IKEA ORDER,Peoples Services Directorate,Personal Requisites,F106,
http://opendatacommunities.org/id/london-borough-council/sutton,London Borough of Sutton,16/08/2019,1280234,77.95 , WWW.IKEA.COM,77.95 - F106 0304 9999 - IKEA ORDER,Peoples Services Directorate,Personal Requisites,F106,
http://opendatacommunities.org/id/london-borough-council/sutton,London Borough of Sutton,15/08/2019,1280234,644.96 , WWW.ARGOS.CO.UK,644.96 - F106 0304 9999 - ARGOS,Peoples Services Directorate,Personal Requisites,F106,
http://opendatacommunities.org/id/london-borough-council/sutton,London Borough of Sutton,13/08/2019,1280234,646.31 , B&Q DIRECT,646.31 - F106 0304 9999 - B AND Q,Peoples Services Directorate,Personal Requisites,F106,
http://opendatacommunities.org/id/london-borough-council/sutton,London Borough of Sutton,19/08/2019,1280234,13.88 , SAINSBURYS SACAT 2006,HC,Peoples Services Directorate,Personal Requisites,F106,
http://opendatacommunities.org/id/london-borough-council/sutton,London Borough of Sutton,16/08/2019,1280234,4.67 , MCDONALDS,MA ACTIVITY,Peoples Services Directorate,Personal Requisites,F106,
http://opendatacommunities.org/id/london-borough-council/sutton,London Borough of Sutton,16/08/2019,1280234,20.00 , HOSPEDIAHOSPITALTV,LN,Peoples Services Directorate,Personal Requisites,F106,
http://opendatacommunities.org/id/london-borough-council/sutton,London Borough of Sutton,13/08/2019,1280234,25.24 , ASDA SUPERSTORE,LIFE SKILLS DINNER,Peoples Services Directorate,Personal Requisites,F106,
http://opendatacommunities.org/id/london-borough-council/sutton,London Borough of Sutton,13/08/2019,1280234,94.75 , THE POST OFFICE,JM PP,Peoples Services Directorate,Personal Requisites,F106,
http://opendatacommunities.org/id/london-borough-council/sutton,London Borough of Sutton,13/08/2019,1280234,17.58 , IZ  GINGER FROG CATERI,JM ACTIVITY,Peoples Services Directorate,Personal Requisites,F106,
http://opendatacommunities.org/id/london-borough-council/sutton,London Borough of Sutton,12/08/2019,1280234,35.66 , LIDL GB LONDON,LC,Peoples Services Directorate,Personal Requisites,F106,
http://opendatacommunities.org/id/london-borough-council/sutton,London Borough of Sutton,12/08/2019,1280234,94.75 , POST OFFICE COUNTER,DC PP,Peoples Services Directorate,Personal Requisites,F106,
http://opendatacommunities.org/id/london-borough-council/sutton,London Borough of Sutton,12/08/2019,1280234,43.02 , H & M,LC,Peoples Services Directorate,Personal Requisites,F106,
http://opendatacommunities.org/id/london-borough-council/sutton,London Borough of Sutton,09/08/2019,1280234,19.97 , PICK N PAY,QUAD,Peoples Services Directorate,Personal Requisites,F106,
http://opendatacommunities.org/id/london-borough-council/sutton,London Borough of Sutton,08/08/2019,1280234,13.30 , MOON ON THE HILL,RA ACTIVITY,Peoples Services Directorate,Personal Requisites,F106,
http://opendatacommunities.org/id/london-borough-council/sutton,London Borough of Sutton,07/08/2019,1280234,8.00 , TESCO STORE 3235,LIFE SKILLS FOOD,Peoples Services Directorate,Personal Requisites,F106,
http://opendatacommunities.org/id/london-borough-council/sutton,London Borough of Sutton,07/08/2019,1280234,10.29 , BUDGENS,JC GROCERIES,Peoples Services Directorate,Personal Requisites,F106,
http://opendatacommunities.org/id/london-borough-council/sutton,London Borough of Sutton,06/08/2019,1280234,67.80 , PRIMARK,KB PRISON,Peoples Services Directorate,Personal Requisites,F106,
http://opendatacommunities.org/id/london-borough-council/sutton,London Borough of Sutton,05/08/2019,1280234,4.80 , MCDONALDS,MA ACTIVITY,Peoples Services Directorate,Personal Requisites,F106,
http://opendatacommunities.org/id/london-borough-council/sutton,London Borough of Sutton,01/08/2019,1280234,25.00 , POST OFFICE COUNTER,AG BDAY,Peoples Services Directorate,Personal Requisites,F106,
http://opendatacommunities.org/id/london-borough-council/sutton,London Borough of Sutton,01/08/2019,1280234,94.75 , POST OFFICE COUNTER,MD PP,Peoples Services Directorate,Personal Requisites,F106,
http://opendatacommunities.org/id/london-borough-council/sutton,London Borough of Sutton,31/07/2019,1280234,10.50 , TESCO STORE 3235,LIFE SKILLS,Peoples Services Directorate,Personal Requisites,F106,
http://opendatacommunities.org/id/london-borough-council/sutton,London Borough of Sutton,31/07/2019,1280234,15.00 , IKEA LTD 144 CROYDON E,LIFE SKILLS DIY,Peoples Services Directorate,Personal Requisites,F106,
http://opendatacommunities.org/id/london-borough-council/sutton,London Borough of Sutton,20/08/2019,1280234,10.82 , AMZNMKTPLACE,ITEMS REQUESTED BY THE QUAD,Peoples Services Directorate,Provisions - General,F150,
http://opendatacommunities.org/id/london-borough-council/sutton,London Borough of Sutton,22/08/2019,1280234,9.30 , NEW SOUTHERN RAILW,JC COL,Peoples Services Directorate,C.C.A Travel & Subsistance,H212,
http://opendatacommunities.org/id/london-borough-council/sutton,London Borough of Sutton,05/08/2019,1280234,214.99 , WWW.ARGOS.CO.UK,SET UP COSTS LEAVING CARE,Peoples Services Directorate,Set Up Costs - Children Leaving Care,H336,
http://opendatacommunities.org/id/london-borough-council/sutton,London Borough of Sutton,12/08/2019,1280234,159.99 , ARGOS RETAIL GROUP,MO SET UP,Peoples Services Directorate,Set Up Costs - Children Leaving Care,H336,
http://opendatacommunities.org/id/london-borough-council/sutton,London Borough of Sutton,29/07/2019,1280234,12.99 , ARGOS RETAIL GROUP,KB SET UP,Peoples Services Directorate,Set Up Costs - Children Leaving Care,H336,
http://opendatacommunities.org/id/london-borough-council/sutton,London Borough of Sutton,11/08/2019,1280234,99.17 , AMAZON.CO.UK MH2UA1K14,SPLIT - HENRY HVR 160-11 BAGGED CYLINDER VACUUM (100%),Peoples Services Directorate,Set Up Costs - Children Leaving Care,H336,
http://opendatacommunities.org/id/london-borough-council/sutton,London Borough of Sutton,11/08/2019,1280234,19.83 , AMAZON.CO.UK MH2UA1K14,BALANCING ENTRY TAX (0%),Peoples Services Directorate,Set Up Costs - Children Leaving Care,H336,
http://opendatacommunities.org/id/london-borough-council/sutton,London Borough of Sutton,08/08/2019,1280234,672.50 , CURRYS ONLINE,CARE LEAVER SET UP,Peoples Services Directorate,Set Up Costs - Children Leaving Care,H336,
http://opendatacommunities.org/id/london-borough-council/sutton,London Borough of Sutton,14/08/2019,1280234,599.96 , WWW.ARGOS.CO.UK,SET UP COSTS,Peoples Services Directorate,Set Up Costs - Children Leaving Care,H336,
http://opendatacommunities.org/id/london-borough-council/sutton,London Borough of Sutton,14/08/2019,1280234,(599.96), WWW.ARGOS.CO.UK,SET UP COSTS,Peoples Services Directorate,Set Up Costs - Children Leaving Care,H336,
http://opendatacommunities.org/id/london-borough-council/sutton,London Borough of Sutton,14/08/2019,1280234,(303.91), WWW.ARGOS.CO.UK,SET UP COSTS REFUND,Peoples Services Directorate,Set Up Costs - Children Leaving Care,H336,
http://opendatacommunities.org/id/london-borough-council/sutton,London Borough of Sutton,14/08/2019,1280234,303.91 , WWW.ARGOS.CO.UK,SET UP COSTS,Peoples Services Directorate,Set Up Costs - Children Leaving Care,H336,
http://opendatacommunities.org/id/london-borough-council/sutton,London Borough of Sutton,02/08/2019,1280234,212.94 , WWW.ARGOS.CO.UK,ARGOS DELIVERY,Peoples Services Directorate,Set Up Costs - Children Leaving Care,H336,
http://opendatacommunities.org/id/london-borough-council/sutton,London Borough of Sutton,21/08/2019,1280234,166.14 , WWW.THERANGE.CO.UK,LEAVING CARE PACKAGE,Peoples Services Directorate,Set Up Costs - Children Leaving Care,H336,
http://opendatacommunities.org/id/london-borough-council/sutton,London Borough of Sutton,19/08/2019,1280234,587.50 , WWW.IKEA.COM,SET UP COSTS LEAVING CARE,Peoples Services Directorate,Set Up Costs - Children Leaving Care,H336,
http://opendatacommunities.org/id/london-borough-council/sutton,London Borough of Sutton,05/08/2019,1280234,289.99 , WWW.ARGOS.CO.UK,SET UP COSTS FOR LEAVING CARE,Peoples Services Directorate,Set Up Costs - Children Leaving Care,H336,
http://opendatacommunities.org/id/london-borough-council/sutton,London Borough of Sutton,05/08/2019,1280234,8.33 , EASYHOTEL LONDON CROYD,EI ACCOM,Peoples Services Directorate,Personal Requisites,F106,
http://opendatacommunities.org/id/london-borough-council/sutton,London Borough of Sutton,02/08/2019,1280234,129.97 , EASYHOTEL LONDON CROYD,EI ACCOM,Peoples Services Directorate,Personal Requisites,F106,
http://opendatacommunities.org/id/london-borough-council/sutton,London Borough of Sutton,24/08/2019,1280234,20.00 , OYSTER AUTO-TOP UP,20.00 - A530 0310 9999,Peoples Services Directorate,Travelling and Subsistence Allowances,A530,
http://opendatacommunities.org/id/london-borough-council/sutton,London Borough of Sutton,23/08/2019,1280234,20.00 , OYSTER AUTO-TOP UP,20.00 - A530 0310 9999,Peoples Services Directorate,Travelling and Subsistence Allowances,A530,
http://opendatacommunities.org/id/london-borough-council/sutton,London Borough of Sutton,22/08/2019,1280234,613.00 , AO RETAIL LIMITED,20.00 - A530 0310 9999 17TH AUG.PN,Peoples Services Directorate,Travelling and Subsistence Allowances,A530,
http://opendatacommunities.org/id/london-borough-council/sutton,London Borough of Sutton,22/08/2019,1280234,20.00 , OYSTER AUTO-TOP UP,20.00 - A530 0310 9999 OYSTER,Peoples Services Directorate,Travelling and Subsistence Allowances,A530,
http://opendatacommunities.org/id/london-borough-council/sutton,London Borough of Sutton,09/08/2019,1280234,20.00 , OYSTER AUTO-TOP UP,20.00 - A530 0310 9999 - 10 08 2019,Peoples Services Directorate,Travelling and Subsistence Allowances,A530,
http://opendatacommunities.org/id/london-borough-council/sutton,London Borough of Sutton,19/08/2019,1280234,485.55 , TRAVELODGE,EMERGENCY ACCOMMODATION,Peoples Services Directorate,Accommodation - Bed and Breakfast,H202,
http://opendatacommunities.org/id/london-borough-council/sutton,London Borough of Sutton,09/08/2019,1280234,311.25 , TRAVELODGE,311.25 - H211 0310 9999 - RAS CLIENT ACCOMODATION.PNG,Peoples Services Directorate,C.C.A Rent & Utilities,H211,
http://opendatacommunities.org/id/london-borough-council/sutton,London Borough of Sutton,02/08/2019,1280234,95.98 , ENTERPRISE RENT-A-CAR,TRAVEL,Peoples Services Directorate,Travelling and Subsistence Allowances,A530,
http://opendatacommunities.org/id/london-borough-council/sutton,London Borough of Sutton,08/08/2019,1280234,20.00 , OYSTER AUTO-TOP UP,20.00 - A530 0311 9999 - OYSTER 1,Peoples Services Directorate,Travelling and Subsistence Allowances,A530,
http://opendatacommunities.org/id/london-borough-council/sutton,London Borough of Sutton,08/08/2019,1280234,20.00 , OYSTER AUTO-TOP UP,20.00 - A530 0311 9999 - OYSTER,Peoples Services Directorate,Travelling and Subsistence Allowances,A530,
http://opendatacommunities.org/id/london-borough-council/sutton,London Borough of Sutton,07/08/2019,1280234,20.00 , OYSTER AUTO-TOP UP,20.00 - A530 0311 9999 - OYSTER,Peoples Services Directorate,Travelling and Subsistence Allowances,A530,
http://opendatacommunities.org/id/london-borough-council/sutton,London Borough of Sutton,29/07/2019,1280234,40.00 , WWW.WIGHTLINK.CO.UK,40.00 - A530 0311 9999 - WIGTLINK,Peoples Services Directorate,Travelling and Subsistence Allowances,A530,
http://opendatacommunities.org/id/london-borough-council/sutton,London Borough of Sutton,28/07/2019,1280234,20.00 , OYSTER AUTO-TOP UP,20.00 AUTO TOP UP -,Peoples Services Directorate,Travelling and Subsistence Allowances,A530,
http://opendatacommunities.org/id/london-borough-council/sutton,London Borough of Sutton,05/08/2019,1280234,22.00 , LBSUTTON,BIRTH CERTIFICATES,Peoples Services Directorate,Personal Requisites,F106,
http://opendatacommunities.org/id/london-borough-council/sutton,London Borough of Sutton,01/08/2019,1280234,18.33 , LBSUTTON,BIRTH CERTIFICATE,Peoples Services Directorate,Personal Requisites,F106,
http://opendatacommunities.org/id/london-borough-council/sutton,London Borough of Sutton,13/08/2019,1280234,36.00 , GEN REGISTER OFFICE,PERSONA; REQUISITES,Peoples Services Directorate,Personal Requisites,F106,
http://opendatacommunities.org/id/london-borough-council/sutton,London Borough of Sutton,02/08/2019,1280234,263.95 , WWW.ARGOS.CO.UK,ARGOS MATTRESS,Peoples Services Directorate,Personal Requisites,F106,
http://opendatacommunities.org/id/london-borough-council/sutton,London Borough of Sutton,23/08/2019,1280234,20.00 , WWW.WIGHTLINK.CO.UK,20.00 F106 0311 9999 - WIGHTLINK.P,Peoples Services Directorate,Personal Requisites,F106,
http://opendatacommunities.org/id/london-borough-council/sutton,London Borough of Sutton,23/08/2019,1280234,20.00 , WWW.WIGHTLINK.CO.UK,20.00 F106 0311 9999 - WIGHTLINK.,Peoples Services Directorate,Personal Requisites,F106,
http://opendatacommunities.org/id/london-borough-council/sutton,London Borough of Sutton,23/08/2019,1280234,44.00 , KENT COUNTY COUNCIL,44.00 - F106 0311 9999 - KENT COUNTY COUNCIL,Peoples Services Directorate,Personal Requisites,F106,
http://opendatacommunities.org/id/london-borough-council/sutton,London Borough of Sutton,12/08/2019,1280234,177.00 , HM PASSPORT,177.00 - F106 0311 9999 - PASSPORT APPOINTMENT,Peoples Services Directorate,Personal Requisites,F106,
http://opendatacommunities.org/id/london-borough-council/sutton,London Borough of Sutton,08/08/2019,1280234,6.58 , AMZNMKTPLACE,SPLIT - LARGE PUZZLE ROLL UP JIGSAW MAT FOR UP TO 3000PC'S EASY STORAGE (100%),Peoples Services Directorate,Personal Requisites,F106,
http://opendatacommunities.org/id/london-borough-council/sutton,London Borough of Sutton,01/08/2019,1280234,120.50 , TRAVELODGE,EMERGENCY ACCOMMODATION,Peoples Services Directorate,Accommodation - Bed and Breakfast,H202,
http://opendatacommunities.org/id/london-borough-council/sutton,London Borough of Sutton,14/08/2019,1280234,211.33 , TRAVELODGE,ACCOMODATION,Peoples Services Directorate,Accommodation - Bed and Breakfast,H202,
http://opendatacommunities.org/id/london-borough-council/sutton,London Borough of Sutton,06/08/2019,1280234,50.00 , NSL LTD,FINE PAYMENT,Peoples Services Directorate,Payments Under the Child Care Act 1980,H210,
http://opendatacommunities.org/id/london-borough-council/sutton,London Borough of Sutton,14/08/2019,1280234,20.00 , WWW.WIGHTLINK.CO.UK,TRAVEL,Peoples Services Directorate,C.C.A Travel & Subsistance,H212,
http://opendatacommunities.org/id/london-borough-council/sutton,London Borough of Sutton,01/08/2019,1280234,77.50 , WWW FLIPOUT CO UK,CLIENT CARE ACTIVITY,Peoples Services Directorate,Client Care/Assistance,H301,
http://opendatacommunities.org/id/london-borough-council/sutton,London Borough of Sutton,26/08/2019,1280234,30.69 , AMAZON.CO.UK MA5U534E4,30.69 - H301 0311 9999 - MOOD CARDS FOR LAC CHILD,Peoples Services Directorate,Client Care/Assistance,H301,
http://opendatacommunities.org/id/london-borough-council/sutton,London Borough of Sutton,15/08/2019,1280234,248.92 , WWW.ARGOS.CO.UK,248.92 - H336 0311 9999 - ARGOS,Peoples Services Directorate,Set Up Costs - Children Leaving Care,H336,
http://opendatacommunities.org/id/london-borough-council/sutton,London Borough of Sutton,09/08/2019,1280234,20.00 , OYSTER AUTO-TOP UP,20.00 - A530 0312 9999,Peoples Services Directorate,Travelling and Subsistence Allowances,A530,
http://opendatacommunities.org/id/london-borough-council/sutton,London Borough of Sutton,07/08/2019,1280234,20.00 , OYSTER AUTO-TOP UP,20.00 - A530 0312 9999,Peoples Services Directorate,Travelling and Subsistence Allowances,A530,
http://opendatacommunities.org/id/london-borough-council/sutton,London Borough of Sutton,14/08/2019,1280234,22.00 , LBSUTTON,PERSONAL REQUISITES,Peoples Services Directorate,Personal Requisites,F106,
http://opendatacommunities.org/id/london-borough-council/sutton,London Borough of Sutton,14/08/2019,1280234,22.00 , LBSUTTON,PERSONAL REQUISITES,Peoples Services Directorate,Personal Requisites,F106,
http://opendatacommunities.org/id/london-borough-council/sutton,London Borough of Sutton,06/08/2019,1280234,22.00 , LBSUTTON,PERSONAL REQUISITES,Peoples Services Directorate,Personal Requisites,F106,
http://opendatacommunities.org/id/london-borough-council/sutton,London Borough of Sutton,06/08/2019,1280234,22.00 , LBSUTTON,PERSONAL REQUISITES,Peoples Services Directorate,Personal Requisites,F106,
http://opendatacommunities.org/id/london-borough-council/sutton,London Borough of Sutton,12/08/2019,1280234,122.00 , HM PASSPORT,122.00 - F106 0312 9999  PASSPORT APP,Peoples Services Directorate,Personal Requisites,F106,
http://opendatacommunities.org/id/london-borough-council/sutton,London Borough of Sutton,05/08/2019,1280234,8.95 , AMZNMKTPLACE AMAZON.CO,SPLIT - SINGLE FITTED SHEET PINK  (14.13%),Peoples Services Directorate,Client Care/Assistance,H301,
http://opendatacommunities.org/id/london-borough-council/sutton,London Borough of Sutton,05/08/2019,1280234,14.99 , AMZNMKTPLACE AMAZON.CO,SPLIT - BLOOMSBURY MILL -  KIDS BEDDING SET (23.67%),Peoples Services Directorate,Client Care/Assistance,H301,
http://opendatacommunities.org/id/london-borough-council/sutton,London Borough of Sutton,05/08/2019,1280234,11.25 , AMZNMKTPLACE AMAZON.CO,SPLIT - DUVET SET  (17.76%),Peoples Services Directorate,Client Care/Assistance,H301,
http://opendatacommunities.org/id/london-borough-council/sutton,London Borough of Sutton,05/08/2019,1280234,9.42 , AMZNMKTPLACE AMAZON.CO,SPLIT - BEDLAM - FITTED SHEET (14.87%),Peoples Services Directorate,Client Care/Assistance,H301,
http://opendatacommunities.org/id/london-borough-council/sutton,London Borough of Sutton,05/08/2019,1280234,12.99 , AMZNMKTPLACE AMAZON.CO,SPLIT - LINENSRANGE DUVET QUILT COVER BEDDING SET (100%),Peoples Services Directorate,Client Care/Assistance,H301,
http://opendatacommunities.org/id/london-borough-council/sutton,London Borough of Sutton,05/08/2019,1280234,183.93 , WWW.ARGOS.CO.UK,ITEMS FOR COURT CASE,Peoples Services Directorate,Client Care/Assistance,H301,
http://opendatacommunities.org/id/london-borough-council/sutton,London Borough of Sutton,06/08/2019,1280234,9.21 , AMZNMKTPLACE AMAZON.CO,SPLIT - MERMAIDINGLE FITTED SHEET (78.92%),Peoples Services Directorate,Client Care/Assistance,H301,
http://opendatacommunities.org/id/london-borough-council/sutton,London Borough of Sutton,06/08/2019,1280234,2.46 , AMZNMKTPLACE AMAZON.CO,BALANCING ENTRY AMOUNT (21.08%),Peoples Services Directorate,Client Care/Assistance,H301,
http://opendatacommunities.org/id/london-borough-council/sutton,London Borough of Sutton,05/08/2019,1280234,6.75 , AMZNMKTPLACE AMAZON.CO,SPLIT - EASY CARE SINGLE FITTED SHEE (10.66%),Peoples Services Directorate,Client Care/Assistance,H301,
http://opendatacommunities.org/id/london-borough-council/sutton,London Borough of Sutton,05/08/2019,1280234,11.98 , AMZNMKTPLACE AMAZON.CO,SPLIT - BEDLAM - SUPERSONIC  DUVET COVER SET (18.91%),Peoples Services Directorate,Client Care/Assistance,H301,
http://opendatacommunities.org/id/london-borough-council/sutton,London Borough of Sutton,23/08/2019,1280234,20.00 , OYSTER AUTO-TOP UP,20.00 - A530 0318 9999 - 23.08.2019 - OYSTER CARD,Peoples Services Directorate,Travelling and Subsistence Allowances,A530,
http://opendatacommunities.org/id/london-borough-council/sutton,London Borough of Sutton,10/08/2019,1280234,20.00 , OYSTER AUTO-TOP UP,20.00 - A530 0318 9999,Peoples Services Directorate,Travelling and Subsistence Allowances,A530,
http://opendatacommunities.org/id/london-borough-council/sutton,London Borough of Sutton,10/08/2019,1280234,20.00 , OYSTER AUTO-TOP UP,20.00 - A530 0318 999,Peoples Services Directorate,Travelling and Subsistence Allowances,A530,
http://opendatacommunities.org/id/london-borough-council/sutton,London Borough of Sutton,04/08/2019,1280234,20.00 , OYSTER AUTO-TOP UP,20.00 - A530 0318 9999,Peoples Services Directorate,Travelling and Subsistence Allowances,A530,
http://opendatacommunities.org/id/london-borough-council/sutton,London Borough of Sutton,30/07/2019,1280234,20.00 , OYSTER AUTO-TOP UP,20.00 - A530 0318 9999 - OYSTER 0,Peoples Services Directorate,Travelling and Subsistence Allowances,A530,
http://opendatacommunities.org/id/london-borough-council/sutton,London Borough of Sutton,28/07/2019,1280234,20.00 , OYSTER AUTO-TOP UP,20.00 - A530 0318 9999 -,Peoples Services Directorate,Travelling and Subsistence Allowances,A530,
http://opendatacommunities.org/id/london-borough-council/sutton,London Borough of Sutton,27/07/2019,1280234,20.00 , OYSTER AUTO-TOP UP,20.00 - A530 0318 9999 - OYSTER 0,Peoples Services Directorate,Travelling and Subsistence Allowances,A530,
http://opendatacommunities.org/id/london-borough-council/sutton,London Borough of Sutton,26/07/2019,1280234,20.00 , OYSTER AUTO-TOP UP,20.00 - A530 0318 9999 -,Peoples Services Directorate,Travelling and Subsistence Allowances,A530,
http://opendatacommunities.org/id/london-borough-council/sutton,London Borough of Sutton,25/07/2019,1280234,20.00 , OYSTER AUTO-TOP UP,20.00 - A530 0320 9999 -,Peoples Services Directorate,Travelling and Subsistence Allowances,A530,
http://opendatacommunities.org/id/london-borough-council/sutton,London Borough of Sutton,01/08/2019,1280234,11.00 , WESTSUSSEX.GOV.UK,BIRTH CERTIFICATE,Peoples Services Directorate,Personal Requisites,F106,
http://opendatacommunities.org/id/london-borough-council/sutton,London Borough of Sutton,14/08/2019,1280234,59.99 , AMZNMKTPLACE,SPLIT - SOPORIS DELUXE WEIGHTED BLANKET FOR CHILDREN (100%),Peoples Services Directorate,Personal Requisites,F106,
http://opendatacommunities.org/id/london-borough-council/sutton,London Borough of Sutton,14/08/2019,1280234,98.00 , AMZNMKTPLACE,"SPLIT - HENRY HVR 160-11 BAGGED CYLINDER VACUUM, 620 W, 6 LITRES, RED (100%)",Peoples Services Directorate,Personal Requisites,F106,
http://opendatacommunities.org/id/london-borough-council/sutton,London Borough of Sutton,03/08/2019,1280234,20.00 , OYSTER AUTO-TOP UP,20.00 - A530 0328 9999 -,Peoples Services Directorate,Travelling and Subsistence Allowances,A530,
http://opendatacommunities.org/id/london-borough-council/sutton,London Borough of Sutton,30/07/2019,1280234,20.00 , OYSTER AUTO-TOP UP,20.00 - A530 0320 9999 - OYSTER 071,Peoples Services Directorate,Travelling and Subsistence Allowances,A530,
http://opendatacommunities.org/id/london-borough-council/sutton,London Borough of Sutton,27/07/2019,1280234,20.00 , OYSTER AUTO-TOP UP,20.00 - A530 0320 9999 - OYSTER,Peoples Services Directorate,Travelling and Subsistence Allowances,A530,
http://opendatacommunities.org/id/london-borough-council/sutton,London Borough of Sutton,03/08/2019,1280234,20.00 , OYSTER AUTO-TOP UP,20.00 - A530 0321 9999,Peoples Services Directorate,Travelling and Subsistence Allowances,A530,
http://opendatacommunities.org/id/london-borough-council/sutton,London Borough of Sutton,31/07/2019,1280234,20.00 , OYSTER AUTO-TOP UP,20.00 - A530 0321 9999 -,Peoples Services Directorate,Travelling and Subsistence Allowances,A530,
http://opendatacommunities.org/id/london-borough-council/sutton,London Borough of Sutton,01/08/2019,1280234,27.89 , VIKING UK,CLIENT HOUSEHOLD GOODS,Peoples Services Directorate,Provisions - General,F150,
http://opendatacommunities.org/id/london-borough-council/sutton,London Borough of Sutton,21/08/2019,1280234,29.98 , VIKING UK,SPLIT - HEIGHT ADJUST FOOTRST OD (89.57%),Peoples Services Directorate,Provisions - General,F150,
http://opendatacommunities.org/id/london-borough-council/sutton,London Borough of Sutton,21/08/2019,1280234,3.48 , VIKING UK,SPLIT - FREIGHT (10.4%),Peoples Services Directorate,Provisions - General,F150,
http://opendatacommunities.org/id/london-borough-council/sutton,London Borough of Sutton,21/08/2019,1280234,0.01 , VIKING UK,BALANCING ENTRY AMOUNT (0.03%),Peoples Services Directorate,Provisions - General,F150,
http://opendatacommunities.org/id/london-borough-council/sutton,London Borough of Sutton,03/08/2019,1280234,20.00 , OYSTER AUTO-TOP UP,OYSTER TOP UP PLACEMENTS,Peoples Services Directorate,Travelling and Subsistence Allowances,A530,
http://opendatacommunities.org/id/london-borough-council/sutton,London Borough of Sutton,23/08/2019,1280234,51.00 , HOLIDAY INNS,51.00 - H202 0331 9999 - HOLIDAY INN BOOKING FOR LSCB CHAIR,Chief Executive's Directorate,Accommodation - Bed and Breakfast,H202,
http://opendatacommunities.org/id/london-borough-council/sutton,London Borough of Sutton,22/08/2019,1280234,93.00 , HOLIDAY INNS,93.00 - H202 0331 9999 - HOLIDAY INN BOOKING FOR LSCB CHAIR,Chief Executive's Directorate,Accommodation - Bed and Breakfast,H202,
http://opendatacommunities.org/id/london-borough-council/sutton,London Borough of Sutton,02/08/2019,1280234,75.21 , TESCO STORES 5999,TEAM TRAINING,Peoples Services Directorate,Personal Requisites,F106,
http://opendatacommunities.org/id/london-borough-council/sutton,London Borough of Sutton,22/08/2019,1280234,41.20 , EMPIRE CINEMAS,41.20 - F106 0340 9999 - EMPIRE CINEMA,Peoples Services Directorate,Personal Requisites,F106,
http://opendatacommunities.org/id/london-borough-council/sutton,London Borough of Sutton,26/07/2019,1280234,41.20 , EMPIRE CINEMAS,41.20 - F106 0340 9999 - CONTACT ACTIVITY FOR SFC CLIENTS,Peoples Services Directorate,Personal Requisites,F106,
http://opendatacommunities.org/id/london-borough-council/sutton,London Borough of Sutton,19/08/2019,1280234,446.50 , HIGHSTREETVOUCHERS,LOVE2SHOP VOUCHERS (HIGHSTREET VOUCHERS),Peoples Services Directorate,Provisions - General,F150,
http://opendatacommunities.org/id/london-borough-council/sutton,London Borough of Sutton,25/07/2019,1280234,20.00 , OYSTER AUTO-TOP UP,20.00 AUTO TOP UP - A530 0383 9999 -,Peoples Services Directorate,Travelling and Subsistence Allowances,A530,
http://opendatacommunities.org/id/london-borough-council/sutton,London Borough of Sutton,26/07/2019,1280234,16.67 , OYSTER AUTO-TOP UP,TRAVEL,Peoples Services Directorate,Travelling and Subsistence Allowances,A530,
http://opendatacommunities.org/id/london-borough-council/sutton,London Borough of Sutton,16/08/2019,1280234,20.00 , OYSTER AUTO-TOP UP,20.00 AUTO TOP UP - A530 0383 9999,Peoples Services Directorate,Travelling and Subsistence Allowances,A530,
http://opendatacommunities.org/id/london-borough-council/sutton,London Borough of Sutton,26/07/2019,1280234,20.00 , OYSTER AUTO-TOP UP,20.00 AUTO TOP UP - A530 0383 9999,Peoples Services Directorate,Travelling and Subsistence Allowances,A530,
http://opendatacommunities.org/id/london-borough-council/sutton,London Borough of Sutton,26/07/2019,1280234,20.00 , OYSTER AUTO-TOP UP,20.00 AUTO TOP UP - A530 0383 9999 -,Peoples Services Directorate,Travelling and Subsistence Allowances,A530,
http://opendatacommunities.org/id/london-borough-council/sutton,London Borough of Sutton,17/08/2019,1280234,20.00 , OYSTER AUTO-TOP UP,20.00 AUTO TOP UP - A530 0383 9999,Peoples Services Directorate,Recruitment Expenses,A531,
http://opendatacommunities.org/id/london-borough-council/sutton,London Borough of Sutton,19/08/2019,1280234,20.00 , OYSTER AUTO-TOP UP,20.00 - A530 0384 9999,Peoples Services Directorate,Travelling and Subsistence Allowances,A530,
http://opendatacommunities.org/id/london-borough-council/sutton,London Borough of Sutton,16/08/2019,1280234,"(1,211.44)", ROYAL DUTCH AIRLINES (KLM),PARTIAL REFUND OF FLIGHT COSTS,Peoples Services Directorate,C.C.A Travel & Subsistance,H212,
http://opendatacommunities.org/id/london-borough-council/sutton,London Borough of Sutton,07/08/2019,1280234,"(1,192.79)", ROYAL DUTCH AIRLINES (KLM),PARTIAL REFUND OF FLIGHT COSTS,Peoples Services Directorate,C.C.A Travel & Subsistance,H212,
http://opendatacommunities.org/id/london-borough-council/sutton,London Borough of Sutton,22/08/2019,1280234,43.00 , PEARSON ED LTD,EXAM CERTIFICATE REPRINT FOR CLA WHO HAD LOST THEIRS,Peoples Services Directorate,LAC - Education,F269,
http://opendatacommunities.org/id/london-borough-council/sutton,London Borough of Sutton,09/08/2019,1280234,27.74 , TRAINLINE.COM,TRAINS FOR CONFERENCE,"Environment, Housing & Regeneration Directorate",Travelling and Subsistence Allowances,A530,
http://opendatacommunities.org/id/london-borough-council/sutton,London Borough of Sutton,09/08/2019,1280234,147.50 , PREMIER INN,HOTEL FOR CONFERENCE,"Environment, Housing & Regeneration Directorate",Travelling and Subsistence Allowances,A530,
http://opendatacommunities.org/id/london-borough-council/sutton,London Borough of Sutton,09/08/2019,1280234,139.00 , EB  NATIONAL URBAN DES,CONFERENCE,"Environment, Housing & Regeneration Directorate",General Office Expenses,F235,
http://opendatacommunities.org/id/london-borough-council/sutton,London Borough of Sutton,15/08/2019,1280234,20.00 , OYSTER AUTO-TOP UP,OYSTERCARD TOP UP,"Environment, Housing & Regeneration Directorate",General Office Expenses,F235,
http://opendatacommunities.org/id/london-borough-council/sutton,London Borough of Sutton,15/08/2019,1280234,20.00 , OYSTER AUTO-TOP UP,OYSTERCARD TOP UP,"Environment, Housing & Regeneration Directorate",General Office Expenses,F235,
http://opendatacommunities.org/id/london-borough-council/sutton,London Borough of Sutton,22/08/2019,1280234,448.18 , LINKEDIN-481 6170683,LINKEDIN REGISTRATION,"Environment, Housing & Regeneration Directorate",Staff Advertising,A500,
http://opendatacommunities.org/id/london-borough-council/sutton,London Borough of Sutton,20/08/2019,1280234,302.94 , WWW.ETCVENUES.CO.UK,AWAY DAY VENUE FOR EH&R DMT,"Environment, Housing & Regeneration Directorate",General Office Expenses,F235,
http://opendatacommunities.org/id/london-borough-council/sutton,London Borough of Sutton,12/08/2019,1280234,770.00 , PAYPAL  TSRGD,ONLINE TSRGD SUBSCRIPTION (10 USERS),"Environment, Housing & Regeneration Directorate",Subscriptions - General,F450,
http://opendatacommunities.org/id/london-borough-council/sutton,London Borough of Sutton,25/07/2019,1280234,10.00 , LUL TICKET MACHINE,OYSTER TOP UP,Resources Directorate,Recruitment Expenses,A531,
http://opendatacommunities.org/id/london-borough-council/sutton,London Borough of Sutton,20/08/2019,1280234,138.47 , FLORAL IMAGE SUSSEX,CORPORATE FLOWER RENTAL JUNE AND JULY 2019,Resources Directorate,General Office Expenses,F235,
http://opendatacommunities.org/id/london-borough-council/sutton,London Borough of Sutton,12/08/2019,1280234,20.81 , ROBERT DYAS HOLDNG LTD,GARDENING EQUIPMENT FOR VOLUNTEER,Resources Directorate,General Office Expenses,F235,
http://opendatacommunities.org/id/london-borough-council/sutton,London Borough of Sutton,08/08/2019,1280234,25.83 , IKEA LTD 144 CROYDON E,CHAMPAGNE FLUTES,Resources Directorate,General Office Expenses,F235,
http://opendatacommunities.org/id/london-borough-council/sutton,London Borough of Sutton,08/08/2019,1280234,14.17 , JOHN LEWIS,LONG HANDLED DUSTPAN AND BRUSH,Resources Directorate,General Office Expenses,F235,
http://opendatacommunities.org/id/london-borough-council/sutton,London Borough of Sutton,08/08/2019,1280234,2.49 , ASDA SUPERSTORE,SUGAR AND WASHUP LIQUID,Resources Directorate,General Office Expenses,F235,
http://opendatacommunities.org/id/london-borough-council/sutton,London Borough of Sutton,02/08/2019,1280234,10.62 , WILKO RETAIL LIMIT,WATERING CANS AND TISSUES,Resources Directorate,General Office Expenses,F235,
http://opendatacommunities.org/id/london-borough-council/sutton,London Borough of Sutton,20/08/2019,1280234,14.66 , TESCO STORE 3235,CITIZEN REFRESHMENTS,Resources Directorate,Hospitality (VAT not Recoverable),F325,
http://opendatacommunities.org/id/london-borough-council/sutton,London Borough of Sutton,01/08/2019,1280234,9.73 , WAITROSE 559,BISCUITS FOR CITIZENSHIP,Resources Directorate,Hospitality (VAT not Recoverable),F325,
http://opendatacommunities.org/id/london-borough-council/sutton,London Borough of Sutton,20/08/2019,1280234,10.81 , AMZNMKTPLACE AMAZON.CO,TONER FOR STAND ALONE PRINTER RSS,Resources Directorate,Purchase of IT Equipment,F380,
http://opendatacommunities.org/id/london-borough-council/sutton,London Borough of Sutton,03/08/2019,1280234,8.32 , SPOTIFY UK,MUSIC FOR MARRIAGE CEREMONIES,Resources Directorate,Subscriptions - General,F450,
http://opendatacommunities.org/id/london-borough-council/sutton,London Borough of Sutton,14/08/2019,1280234,150.00 , WWW.BII.ORG,PERSONAL ALCOHOL LICENSE COURSE,Resources Directorate,Miscellaneous Expenses,F620,
http://opendatacommunities.org/id/london-borough-council/sutton,London Borough of Sutton,24/08/2019,1280234,20.00 , OYSTER AUTO-TOP UP,OYSTERCARD TOP UP,"Environment, Housing & Regeneration Directorate",General Office Expenses,F235,
http://opendatacommunities.org/id/london-borough-council/sutton,London Borough of Sutton,04/08/2019,1280234,20.00 , OYSTER AUTO-TOP UP,OYSTERCARD TOP UP,HRA,General Office Expenses,F235,
http://opendatacommunities.org/id/london-borough-council/sutton,London Borough of Sutton,16/08/2019,1280234,(158.00), HILTON,PART REFUND OF DEPOSIT PAID FOR ROOMS AT HILTON CROYDON,"Environment, Housing & Regeneration Directorate",Bed and Breakfast Accommodation,G400,
http://opendatacommunities.org/id/london-borough-council/sutton,London Borough of Sutton,16/08/2019,1280234,65.83 , HILTON,HILTON CROYDON 1 NIGHT,"Environment, Housing & Regeneration Directorate",Bed and Breakfast Accommodation,G400,
http://opendatacommunities.org/id/london-borough-council/sutton,London Borough of Sutton,16/08/2019,1280234,78.32 , HILTON,HILTON CROYDON 1 NIGHT,"Environment, Housing & Regeneration Directorate",Bed and Breakfast Accommodation,G400,
http://opendatacommunities.org/id/london-borough-council/sutton,London Borough of Sutton,15/08/2019,1280234,237.00 , HILTON,DEPOSIT FOR ROOMS AT HILTON CROYDON,"Environment, Housing & Regeneration Directorate",Bed and Breakfast Accommodation,G400,
http://opendatacommunities.org/id/london-borough-council/sutton,London Borough of Sutton,15/08/2019,1280234,50.00 , HILTON,HILTON CROYDON 1 NIGHT,"Environment, Housing & Regeneration Directorate",Bed and Breakfast Accommodation,G400,
http://opendatacommunities.org/id/london-borough-council/sutton,London Borough of Sutton,14/08/2019,1280234,126.00 , VIRGIN TRAINS,TRAVEL A LOCAL,Chief Executive's Directorate,Travelling and Subsistence Allowances,A530,
http://opendatacommunities.org/id/london-borough-council/sutton,London Borough of Sutton,09/08/2019,1280234,20.00 , OYSTER AUTO-TOP UP,TEAM OYSTER,Chief Executive's Directorate,Travelling and Subsistence Allowances,A530,
http://opendatacommunities.org/id/london-borough-council/sutton,London Borough of Sutton,15/08/2019,1280234,3.42 ,,WEB HOSTING,Chief Executive's Directorate,Fees - Computer Software,F384,
http://opendatacommunities.org/id/london-borough-council/sutton,London Borough of Sutton,14/08/2019,1280234,124.52 , MAILCHIMP    MONTHLY,WEB HOSTING,Chief Executive's Directorate,Fees - Computer Software,F384,
http://opendatacommunities.org/id/london-borough-council/sutton,London Borough of Sutton,22/08/2019,1280234,182.40 , TONER INK ONLINE,INK FOR COUNCILLORS,Resources Directorate,Stationery,F220,
http://opendatacommunities.org/id/london-borough-council/sutton,London Borough of Sutton,04/08/2019,1280234,405.31 , AMZNMKTPLACE,AMAZON INTERNET OF THINGS DEVICES FOR THE PROTOTYPING EVENT - EVOLVE DIGITAL PROJECT,Resources Directorate,General Office Expenses,F235,
http://opendatacommunities.org/id/london-borough-council/sutton,London Borough of Sutton,31/07/2019,1280234,22.17 , CRESTREGALIA.COM,LEATHER CHAINS CASE,Resources Directorate,Mayor's Allowance,F407,
http://opendatacommunities.org/id/london-borough-council/sutton,London Borough of Sutton,29/07/2019,1280234,3.11 , PAYPAL  EBAY UK LTD,POSTAGE TO RETURN REPLICA CHAIN,Resources Directorate,Mayor's Allowance,F407,
http://opendatacommunities.org/id/london-borough-council/sutton,London Borough of Sutton,29/07/2019,1280234,(165.00), PAYPAL  CRESTREGALI,REFUND OF REPLICA CHAIN,Resources Directorate,Mayor's Allowance,F407,
http://opendatacommunities.org/id/london-borough-council/sutton,London Borough of Sutton,06/08/2019,1280234,415.98 , HOTELSCOM8021991353683,SOCIAL OUTCOMES CONFERENCE OXFORD 5TH TO 6TH SEPTEMBER 2019,Chief Executive's Directorate,Hotel Accomodation,A512,
http://opendatacommunities.org/id/london-borough-council/sutton,London Borough of Sutton,13/08/2019,1280234,(95.99), 123-REG.CO.UK,,Chief Executive's Directorate,Corporate Publicity,F356,
http://opendatacommunities.org/id/london-borough-council/sutton,London Borough of Sutton,11/08/2019,1280234,12.91 , AMZNMKTPLACE,MICROPHONES,Chief Executive's Directorate,Corporate Publicity,F356,
http://opendatacommunities.org/id/london-borough-council/sutton,London Borough of Sutton,06/08/2019,1280234,95.99 , 123-REG.CO.UK,,Chief Executive's Directorate,Corporate Publicity,F356,
http://opendatacommunities.org/id/london-borough-council/sutton,London Borough of Sutton,09/08/2019,1280234,418.80 , H&R SUMMIT 2019,HOUSING AND REGENERATION FINANCE SUMMIT 31ST OCTOBER 2019,Resources Directorate,Conferences - Fees,A525,
http://opendatacommunities.org/id/london-borough-council/sutton,London Borough of Sutton,24/08/2019,1280234,40.00 , OYSTER AUTO-TOP UP,,Resources Directorate,Training - Travel and Subsistence,A521,
http://opendatacommunities.org/id/london-borough-council/sutton,London Borough of Sutton,21/08/2019,1280234,625.91 , WWW.ARGOS.CO.UK,"COT, MATTRESS, COOKER, FREEZER, DIVAN",Resources Directorate,Grants,F473,
http://opendatacommunities.org/id/london-borough-council/sutton,London Borough of Sutton,31/07/2019,1280234,565.93 , WWW.ARGOS.CO.UK,"CL&G PURCHASE, COOKER, BED, FREEZER",Resources Directorate,Grants,F473,
http://opendatacommunities.org/id/london-borough-council/sutton,London Borough of Sutton,23/08/2019,1280234,199.99 , WWW.ARGOS.CO.UK,PURCHASE OF FREEZER FOR CRISIS GRANT,Resources Directorate,Grants,F473,
http://opendatacommunities.org/id/london-borough-council/sutton,London Borough of Sutton,19/08/2019,1280234,409.98 , WWW.ARGOS.CO.UK,PURCHASE OF ELECTRIC COOKER AND FRIDGE FREEZER FOR CRISIS LOAN,Resources Directorate,Grants,F473,
http://opendatacommunities.org/id/london-borough-council/sutton,London Borough of Sutton,26/07/2019,1280234,239.99 , WWW.ARGOS.CO.UK,PURCHASE OF ELECTRIC COOKER FOR CRISIS GRANT,Resources Directorate,Grants,F473,
http://opendatacommunities.org/id/london-borough-council/sutton,London Borough of Sutton,20/08/2019,1280234,13.50 , WWW.GOV.UK,PROBATE CERTIFICATES X 13,Resources Directorate,General Office Expenses,F235,
http://opendatacommunities.org/id/london-borough-council/sutton,London Borough of Sutton,31/07/2019,1280234,13.50 , WWW.GOV.UK,PROBATE CERTIFICATES X 9,Resources Directorate,General Office Expenses,F235,
http://opendatacommunities.org/id/london-borough-council/sutton,London Borough of Sutton,01/08/2019,1280234,40.00 , OYSTER AUTO-TOP UP,BENEFITS STAFF TRAVEL,Resources Directorate,Training - Travel and Subsistence,A521,
http://opendatacommunities.org/id/london-borough-council/sutton,London Borough of Sutton,20/08/2019,1280234,180.00 , WWW.PWC.COM,PURCHASE OF TAX SPREADSHEET,Resources Directorate,Fees - Computer Software,F384,
http://opendatacommunities.org/id/london-borough-council/sutton,London Borough of Sutton,12/08/2019,1280234,22.00 , LBSUTTON,22.00  - F106 6401 9999 CERT,Peoples Services Directorate,Personal Requisites,F106,
http://opendatacommunities.org/id/london-borough-council/sutton,London Borough of Sutton,25/07/2019,1280234,(22.00), SURREY CC CARD PAY,2.00 REFUND - F106 6401 9999. FPR BIRTH CERT,Peoples Services Directorate,Personal Requisites,F106,
http://opendatacommunities.org/id/london-borough-council/sutton,London Borough of Sutton,19/08/2019,1280234,175.13 , HILTON,NATIONAL CHILDREN'S AND ADULT SERVICES CONFERENCE 21/22 NOVEMBER 2019,Peoples Services Directorate,Conferences - Fees,A525,
http://opendatacommunities.org/id/london-borough-council/sutton,London Borough of Sutton,31/07/2019,1280234,158.33 , MBPLC.COM,BROWNS CONFERENCE ROOM PLUS REFRESHMENTS 22.08.19,Peoples Services Directorate,Conferences - Fees,A525,
http://opendatacommunities.org/id/london-borough-council/sutton,London Borough of Sutton,12/08/2019,1280234,3.00 , WWW.GOV.UK,2 X WILL PURCHASE FOR DECEASED CUSTOMER,Peoples Services Directorate,Fees - Other,F299,
http://opendatacommunities.org/id/london-borough-council/sutton,London Borough of Sutton,08/08/2019,1280234,1.50 , WWW.GOV.UK,1 X WILL PURCHASE FOR DECEASED CUSTOMER,Peoples Services Directorate,Fees - Other,F299,
http://opendatacommunities.org/id/london-borough-council/sutton,London Borough of Sutton,07/08/2019,1280234,1.50 , WWW.GOV.UK,1 X WILL PURCHASE FOR DECEASED CUSTOMER,Peoples Services Directorate,Fees - Other,F299,
